bitfinex/quotes_SOLUSD_20240926
["timestamp","ask_amount","ask_price","bid_price","bid_amount"]
[1727355943232,6.9455536,152.86,152.81,16.3598]
[1727355943543,6.9455536,152.86,152.81,22.9037]
[1727355944248,6.9455536,152.86,152.82,6.5435]
[1727355944627,6.9455536,152.86,152.81,22.9038]
[1727355945236,6.5425,152.85,152.81,16.3598]
[1727355945739,6.5425,152.85,152.81,22.9038]
[1727355946049,6.5425,152.85,152.82,1.30853018]
[1727355946251,0.4035536,152.86,152.82,6.5436]
[1727355948745,6.9455536,152.86,152.81,22.9038]
[1727355952231,6.9455536,152.86,152.82,6.5435]
[1727355954167,6.543,152.84,152.8,6.5441]
[1727355954466,6.5435,152.83,152.79,6.5447]
[1727355954646,0.4035536,152.86,152.79,6.5447]
[1727355954851,6.5429,152.84,152.8,6.5443]
[1727355955451,0.4035536,152.86,152.78,16.3626]
[1727355955652,6.5424,152.85,152.81,6.544]
[1727355956339,0.4035536,152.86,152.82,1.3085104]
[1727355956571,0.4035536,152.86,152.83,6.543]
[1727355956743,0.4035536,152.86,152.84,1.30839042]
[1727355957072,0.4035536,152.86,152.83,7.85139007]
[1727355957252,6.9454536,152.86,152.82,22.9022]
[1727355957649,6.5423,152.85,152.82,16.3587]
[1727355958035,0.4035536,152.86,152.82,16.3587]
[1727355958239,6.9455536,152.86,152.82,16.3587]
[1727355958965,6.9455536,152.86,152.82,22.9023]
[1727355960137,6.5424,152.85,152.82,16.3587]
[1727355960440,0.4035536,152.86,152.79,16.3614]
[1727355960641,6.5428,152.84,152.8,6.5443]
[1727355961261,6.5425,152.85,152.81,7.85262336]
[1727355961442,6.5425,152.85,152.81,6.544]
[1727355962253,0.4035536,152.86,152.8,1.30861918]
[1727355962445,6.9454536,152.86,152.82,6.5433]
[1727355962647,0.4035536,152.86,152.83,7.85153845]
[1727355963245,0.4035536,152.86,152.84,1.30836603]
[1727355964058,0.4035536,152.86,152.85,6.5423]
[1727355966849,0.4035536,152.86,152.85,7.85039598]
[1727355967569,0.4035536,152.86,152.85,6.5423]
[1727355969086,0.4035536,152.86,152.85,7.85036206]
[1727355969399,0.4035536,152.86,152.85,6.5423]
[1727355969686,0.4035536,152.86,152.84,6.5427]
[1727355970079,0.4035536,152.86,152.83,16.3574]
[1727355970285,0.4035536,152.86,152.85,6.5423]
[1727355972281,0.4035536,152.86,152.83,22.9002]
[1727355972474,0.4035536,152.86,152.83,16.3574]
[1727355972679,0.4035536,152.86,152.84,7.85094024]
[1727355972990,0.4035536,152.86,152.84,6.5426]
[1727355974371,6.9456536,152.86,152.82,6.5433]
[1727355974965,0.4035536,152.86,152.83,6.5431]
[1727355975369,0.4035536,152.86,152.84,6.5427]
[1727355975778,0.4035536,152.86,152.85,1.30831048]
[1727355976401,0.4035536,152.86,152.84,6.5427]
[1727355979511,6.9454536,152.86,152.82,22.9019]
[1727355979794,0.4035536,152.86,152.79,16.3614]
[1727355979970,6.5428,152.84,152.8,6.5444]
[1727355980178,0.25098,152.85,152.79,16.3614]
[1727355980577,6.5433,152.83,152.79,16.3614]
[1727355981487,0.25098,152.85,152.74,20.66795053]
[1727355981695,23.0061,152.81,152.77,6.5456]
[1727355981882,16.462,152.81,152.77,6.5456]
[1727355982073,16.462,152.81,152.79,6.5448]
[1727355983081,16.462,152.81,152.8,7.85329222]
[1727355983596,0.12549,152.85,152.81,6.5437]
[1727355983597,16.462,152.85,152.81,6.5437]
[1727355983805,23.0046,152.85,152.81,6.5437]
[1727355983973,23.0046,152.85,152.8,16.3605]
[1727355984172,23.0046,152.85,152.8,22.9048]
[1727355984390,6.5429,152.84,152.8,22.9048]
[1727355984898,6.5436,152.82,152.77,16.3636]
[1727355985075,6.5436,152.82,152.78,6.5453]
[1727355985400,6.5433,152.83,152.78,6.5453]
[1727355985699,6.5433,152.83,152.79,6.5447]
[1727355985876,6.5433,152.83,152.8,1.30871374]
[1727355986079,16.462,152.85,152.8,1.30871374]
[1727355986274,16.462,152.85,152.82,6.5435]
[1727355986497,0.4035536,152.86,152.83,1.30852921]
[1727355987402,0.4035536,152.86,152.84,6.5426]
[1727355987601,0.4035536,152.86,152.83,22.9002]
[1727355988497,6.9455536,152.86,152.83,16.3571]
[1727355989893,6.9455536,152.86,152.82,6.5434]
[1727355991182,0.4035536,152.86,152.82,6.5434]
[1727355992708,0.4035536,152.86,152.83,6.5432]
[1727355992903,0.4035536,152.86,152.84,7.85104183]
[1727355993212,0.4035536,152.86,152.84,6.5427]
[1727355994209,0.4035536,152.86,152.85,7.85056846]
[1727355995014,0.4035536,152.86,152.85,6.5423]
[1727355995309,0.4035536,152.86,152.85,7.85057368]
[1727355995519,0.4035536,152.86,152.85,6.5423]
[1727355995891,0.4035536,152.86,152.81,16.3595]
[1727355996085,0.4035536,152.86,152.82,1.30846539]
[1727355996286,0.4035536,152.86,152.82,6.5433]
[1727355996591,0.4035536,152.86,152.81,22.9034]
[1727355996592,6.5426,152.85,152.81,22.9034]
[1727355997094,6.9454536,152.86,152.82,7.85203974]
[1727355998507,0.4035536,152.86,152.84,6.5427]
[1727355998822,0.4035536,152.86,152.81,16.3595]
[1727355999114,0.4035536,152.86,152.83,6.543]
[1727355999426,0.4035536,152.86,152.84,7.85107141]
[1727355999592,0.4035536,152.86,152.84,6.5427]
[1727356000094,0.4035536,152.86,152.84,7.85106816]
[1727356000298,0.4035536,152.86,152.85,6.5423]
[1727356002096,0.4035536,152.86,152.85,16.355]
[1727356002097,0.4309714,152.86,152.85,16.355]
[1727356002690,0.4309714,152.86,152.85,24.205449]
[1727356003725,0.4309714,152.86,152.85,22.8973]
[1727356006727,0.4309714,152.86,152.85,67.98215188]
[1727356007047,0.1825939,152.9,152.89,6.5406]
[1727356013996,0.1825939,152.9,152.89,7.8484521]
[1727356015434,0.2621695,152.96,152.94,16.3457]
[1727356015797,0.2621695,152.96,152.94,22.884]
[1727356016002,0.2621695,152.96,152.94,16.3457]
[1727356016202,0.2621695,152.96,152.95,1.30744895]
[1727356016704,0.2621695,152.96,152.94,22.8841]
[1727356018108,0.2621695,152.96,152.94,24.19157724]
[1727356019129,0.2621695,152.96,152.95,6.538]
[1727356020129,0.2621695,152.96,152.95,7.84527346]
[1727356020307,0.2621695,152.96,152.95,6.538]
[1727356021532,0.2621695,152.96,152.95,28.51312248]
[1727356021934,0.2621695,152.96,152.95,6.538]
[1727356022511,0.2621695,152.96,152.95,7.84536675]
[1727356023423,0.2621695,152.96,152.95,6.538]
[1727356023826,0.2621695,152.96,152.95,7.84519119]
[1727356024325,0.2621695,152.96,152.95,28.51314172]
[1727356025915,0.2621695,152.96,152.95,28.51314159]
[1727356026122,0.2621695,152.96,152.95,27.20595053]
[1727356026633,0.2621695,152.96,152.95,28.51314169]
[1727356028439,0.2621695,152.96,152.95,20.99558128]
[1727356029519,0.1825939,152.99,152.98,6.5368]
[1727356029712,0.1825939,152.99,152.98,19.68719012]
[1727356030133,0.1825939,152.99,152.96,19.68799012]
[1727356030911,0.1825939,152.99,152.94,16.3456]
[1727356031144,0.1825939,152.99,152.91,32.6978]
[1727356031145,0.2621695,153.0,152.93,6.5386]
[1727356031146,6.5375,152.97,152.93,6.5386]
[1727356031325,6.5375,152.97,152.93,19.68899012]
[1727356031637,0.2753246,152.99,152.93,13.15039012]
[1727356031845,0.2753246,152.99,152.95,13.15039012]
[1727356032022,6.8119246,152.99,152.95,19.68839012]
[1727356032547,6.8119246,152.99,152.95,6.538]
[1727356032753,6.8119246,152.99,152.95,19.68839012]
[1727356041516,0.2753246,152.99,152.97,13.15039012]
[1727356041721,0.2753246,152.99,152.97,19.68759012]
[1727356041923,0.2753246,152.99,152.98,1.30718202]
[1727356042427,0.2753246,152.99,152.97,19.68759012]
[1727356043835,0.12549,152.98,152.92,16.3479]
[1727356044017,6.538,152.96,152.92,16.3479]
[1727356044225,6.5383,152.95,152.92,13.15039012]
[1727356044422,23.0619,152.95,152.92,13.15039012]
[1727356044659,6.5388,152.94,152.89,16.3509]
[1727356044828,6.5388,152.94,152.89,22.8914]
[1727356046149,6.5388,152.94,152.9,6.5401]
[1727356050453,23.0618,152.95,152.91,6.5394]
[1727356051028,6.5385,152.94,152.9,19.69049012]
[1727356051224,16.5236,152.95,152.89,16.3509]
[1727356051225,6.5389,152.93,152.89,22.8914]
[1727356051456,6.5394,152.92,152.89,16.3509]
[1727356051746,6.5398,152.91,152.86,16.3542]
[1727356052242,6.5392,152.93,152.88,6.5406]
[1727356052448,6.5394,152.92,152.88,6.5406]
[1727356052849,20.25098,152.94,152.86,16.3542]
[1727356053160,6.5405,152.9,152.86,22.896]
[1727356053951,6.5399,152.91,152.86,16.3542]
[1727356054150,6.5396,152.92,152.87,19.69149012]
[1727356054626,6.5396,152.92,152.88,6.541]
[1727356055543,6.5398,152.91,152.87,19.69169012]
[1727356058934,6.5406,152.89,152.85,6.5422]
[1727356059254,6.5406,152.89,152.86,1.30820082]
[1727356059573,22.0284,152.9,152.86,7.85000082]
[1727356059735,22.0284,152.9,152.86,6.5418]
[1727356060433,6.5407,152.89,152.85,22.8977]
[1727356061251,6.5413,152.88,152.84,19.92553132]
[1727356061627,15.4881,152.9,152.84,29.73903132]
[1727356061826,15.4881,152.9,152.86,19.69219012]
[1727356062028,15.4881,152.9,152.88,13.15039012]
[1727356062229,15.4881,152.9,152.88,19.69139012]
[1727356062462,15.4881,152.9,152.88,13.15039012]
[1727356062646,42.167,152.94,152.89,6.5406]
[1727356062951,22.167,152.94,152.9,19.69049012]
[1727356066453,6.5392,152.93,152.89,6.5406]
[1727356066653,6.5392,152.93,152.89,19.69099012]
[1727356073159,6.5392,152.93,152.9,1.30789337]
[1727356074049,15.6284,152.94,152.9,1.30789337]
[1727356074259,22.167,152.94,152.9,7.84799337]
[1727356074472,22.167,152.94,152.9,6.5401]
[1727356074671,22.167,152.94,152.91,20.99784712]
[1727356074672,15.6284,152.94,152.91,20.99784712]
[1727356075750,15.6284,152.94,152.91,20.49784712]
[1727356076177,6.5375,152.97,152.93,19.68929012]
[1727356076471,6.5376,152.96,152.93,19.68929012]
[1727356078859,6.5373,152.97,152.93,19.68929012]
[1727356079779,15.122,152.98,152.93,13.15039012]
[1727356080079,21.659,152.98,152.95,13.15039012]
[1727356081481,6.8118246,152.99,152.95,19.68839012]
[1727356083082,6.8118246,152.99,152.95,20.99583978]
[1727356083278,6.8118246,152.99,152.95,7.84544966]
[1727356083455,6.8118246,152.99,152.95,20.99583978]
[1727356083965,0.2753246,152.99,152.95,13.15039012]
[1727356084159,0.2753246,152.99,152.93,13.15039012]
[1727356084366,6.5373,152.97,152.93,19.68899012]
[1727356085077,6.5373,152.97,152.94,1.30752694]
[1727356085372,6.5369,152.98,152.94,7.84602694]
[1727356086079,6.5369,152.98,152.95,13.15039012]
[1727356086585,0.2753246,152.99,152.96,6.5375]
[1727356086762,0.2753246,152.99,152.97,13.15039012]
[1727356087170,0.2753246,152.99,152.97,19.68729012]
[1727356087558,0.2753246,152.99,152.95,16.3449]
[1727356087756,0.2753246,152.99,152.96,19.68769012]
[1727356088277,0.2753246,152.99,152.95,16.3449]
[1727356088992,6.5368,152.98,152.95,22.8826]
[1727356089289,6.8117246,152.99,152.95,22.8826]
[1727356091269,0.2753246,152.99,152.95,16.3449]
[1727356091469,6.5368,152.98,152.95,16.3449]
[1727356092678,6.8475703,152.99,152.95,24.1903431]
[1727356093075,6.8475703,152.99,152.95,22.8829]
[1727356094284,15.2138,152.97,152.86,0.1302494]
[1727356094479,6.5388,152.94,152.9,6.54]
[1727356094674,6.5388,152.94,152.89,13.15039012]
[1727356094675,6.5389,152.93,152.89,36.04159012]
[1727356095782,6.5389,152.93,152.89,22.8912]
[1727356096160,6.5389,152.93,152.89,16.3507]
[1727356096364,0.12549,152.96,152.88,6.5409]
[1727356096365,6.5397,152.92,152.88,6.5409]
[1727356096585,23.1458,152.92,152.88,6.5409]
[1727356098580,16.6061,152.92,152.86,29.63483952]
[1727356098790,23.1206,152.92,152.86,16.4844494]
[1727356099098,6.5398,152.91,152.86,23.0259494]
[1727356099997,6.5403,152.9,152.86,23.0259494]
[1727356101080,6.1862,152.96,152.89,13.15039012]
[1727356101283,16.3373,152.97,152.93,29.49739012]
[1727356101585,16.3373,152.97,152.95,19.68829012]
[1727356102294,16.3373,152.97,152.95,6.5379]
[1727356105995,16.3373,152.97,152.94,1.30746377]
[1727356106202,6.5356,153.01,152.96,6.5376]
[1727356106696,6.536,153.0,152.96,6.5376]
[1727356107767,6.536,153.0,152.95,16.3446]
[1727356107988,6.8475703,152.99,152.95,22.8826]
[1727356108197,6.8475703,152.99,152.92,16.3479]
[1727356108198,6.5372,152.97,152.92,16.3479]
[1727356108493,6.5384,152.95,152.9,6.5401]
[1727356108689,0.12549,152.95,152.9,6.5401]
[1727356108891,6.5385,152.94,152.9,6.5401]
[1727356109083,0.12549,152.95,152.89,16.3509]
[1727356109284,0.12549,152.95,152.9,6.5401]
[1727356109479,6.66369,152.95,152.9,6.5401]
[1727356110400,6.5385,152.94,152.9,6.5401]
[1727356111006,0.12549,152.93,152.89,16.3509]
[1727356111188,6.5392,152.93,152.89,16.3509]
[1727356112079,6.5395,152.92,152.88,6.5407]
[1727356112907,0.12549,152.95,152.86,16.4842494]
[1727356113204,6.5406,152.89,152.86,0.1302494]
[1727356113493,15.1871,152.9,152.86,0.1302494]
[1727356113705,21.7274,152.9,152.86,0.1302494]
[1727356114380,6.66609,152.89,152.86,0.1302494]
[1727356115982,0.12549,152.89,152.86,0.1302494]
[1727356116299,6.541,152.88,152.86,0.1302494]
[1727356116882,6.66619,152.89,152.86,0.1302494]
[1727356118197,6.66699,152.87,152.86,0.1302494]
[1727356125686,6.541,152.89,152.86,0.1302494]
[1727356125885,6.5412,152.88,152.86,0.1302494]
[1727356127784,0.12549,152.89,152.86,0.1302494]
[1727356128000,0.12549,152.89,152.86,6.6721494]
[1727356128385,0.12549,152.89,152.86,0.1302494]
[1727356128714,6.66619,152.89,152.86,0.1302494]
[1727356129010,0.12549,152.89,152.86,6.6721494]
[1727356129915,21.7276,152.9,152.86,6.6721494]
[1727356132389,15.1871,152.9,152.86,0.1302494]
[1727356132720,0.12549,152.89,152.86,0.1302494]
[1727356133412,6.541,152.88,152.86,0.1302494]
[1727356133796,0.12549,152.89,152.86,0.1302494]
[1727356133989,6.66619,152.89,152.86,0.1302494]
[1727356136405,0.12549,152.89,152.86,0.1302494]
[1727356136720,6.5415,152.87,152.86,0.1302494]
[1727356140619,6.66699,152.87,152.86,0.1302494]
[1727356147103,50.569364,152.87,152.86,0.1302494]
[1727356147322,66.025264,152.87,152.86,0.1302494]
[1727356147816,22.12289,152.87,152.86,0.1302494]
[1727356149644,6.5411,152.88,152.86,0.1302494]
[1727356152424,0.12549,152.89,152.86,0.1302494]
[1727356152613,6.66699,152.87,152.86,0.1302494]
[1727356153019,20.25098,152.89,152.86,0.1302494]
[1727356153320,6.5415,152.87,152.86,0.1302494]
[1727356153701,6.5412,152.88,152.86,0.1302494]
[1727356153900,15.3182,152.9,152.86,6.6721494]
[1727356154108,21.8585,152.9,152.86,6.6721494]
[1727356156539,6.66649,152.89,152.86,0.1302494]
[1727356157212,6.5412,152.88,152.86,0.1302494]
[1727356158423,0.12549,152.89,152.86,0.1302494]
[1727356158424,6.5415,152.87,152.86,0.1302494]
[1727356158627,6.66699,152.87,152.86,0.1302494]
[1727356160229,30.569364,152.87,152.86,0.1302494]
[1727356162315,6.79248,152.87,152.86,0.1302494]
[1727356163435,26.5406,152.89,152.86,0.1302494]
[1727356163808,20.0,152.89,152.86,0.1302494]
[1727356164031,6.5411,152.88,152.86,0.1302494]
[1727356164612,20.0,152.89,152.86,0.1302494]
[1727356165338,26.5407,152.89,152.86,0.1302494]
[1727356165731,6.5407,152.89,152.86,0.1302494]
[1727356168539,0.12549,152.89,152.86,6.6720494]
[1727356169526,6.5403,152.9,152.86,6.6720494]
[1727356169844,20.0,152.91,152.88,6.541]
[1727356170225,20.0,152.91,152.87,29.53160853]
[1727356170537,26.5398,152.91,152.87,22.8949]
[1727356172422,6.5398,152.91,152.87,22.8949]
[1727356175447,6.66489,152.92,152.88,6.5407]
[1727356176742,20.12549,152.93,152.87,29.53160853]
[1727356178446,6.5394,152.92,152.88,6.5409]
[1727356181349,0.12549,152.91,152.87,16.3535]
[1727356181539,6.5401,152.91,152.87,22.8949]
[1727356183752,20.12549,152.93,152.87,16.3535]
[1727356183753,6.5402,152.9,152.87,16.3535]
[1727356187752,6.54,152.91,152.87,22.8949]
[1727356189537,23.902374,152.92,152.86,13.30835793]
[1727356189730,0.12549,152.91,152.86,13.30835793]
[1727356189955,6.5406,152.89,152.86,13.30835793]
[1727356190539,6.5406,152.89,152.86,19.85015793]
[1727356190743,6.5403,152.9,152.86,19.85015793]
[1727356193946,6.66539,152.91,152.87,6.5412]
[1727356194668,6.5397,152.92,152.88,19.71900853]
[1727356194970,20.12549,152.93,152.88,13.17810853]
[1727356195142,0.12549,152.92,152.89,6.5405]
[1727356195649,26.539,152.93,152.89,6.5405]
[1727356195956,6.5386,152.94,152.9,19.71800853]
[1727356196646,6.5383,152.95,152.91,6.5397]
[1727356196847,16.3439,152.97,152.9,29.52830853]
[1727356197062,6.5385,152.94,152.9,36.06830853]
[1727356197857,6.5394,152.92,152.88,19.71900853]
[1727356198064,6.5394,152.92,152.88,13.17810853]
[1727356198261,6.5398,152.91,152.87,36.07230853]
[1727356198475,6.5394,152.92,152.88,6.5409]
[1727356201641,6.539,152.93,152.89,6.5405]
[1727356201838,6.539,152.93,152.89,19.71860853]
[1727356203241,6.539,152.93,152.89,6.5405]
[1727356204343,0.12549,152.94,152.88,13.17810853]
[1727356204545,6.5394,152.92,152.88,6.541]
[1727356204958,6.54,152.91,152.87,22.8944]
[1727356205160,24.027864,152.93,152.86,0.1302494]
[1727356205361,6.5402,152.9,152.86,6.6720494]
[1727356205567,20.0,152.92,152.86,0.1302494]
[1727356205762,6.5411,152.88,152.86,0.1302494]
[1727356206469,6.5407,152.89,152.86,0.1302494]
[1727356207259,6.5403,152.9,152.86,6.6721494]
[1727356207454,6.5409,152.89,152.86,0.1302494]
[1727356208561,6.5414,152.88,152.86,0.1302494]
[1727356209567,20.25098,152.91,152.86,0.1302494]
[1727356209867,6.66699,152.87,152.86,0.1302494]
[1727356216857,6.79248,152.87,152.86,0.1302494]
[1727356217061,50.569364,152.87,152.86,0.1302494]
[1727356219473,6.5415,152.87,152.86,0.1302494]
[1727356219652,16.3498,152.91,152.86,0.1302494]
[1727356219852,6.541,152.88,152.86,0.1302494]
[1727356220677,15.6301,152.92,152.87,6.5414]
[1727356220978,6.5401,152.91,152.87,6.5414]
[1727356221181,6.5396,152.92,152.88,6.541]
[1727356221388,6.5392,152.93,152.88,6.5407]
[1727356222271,6.5392,152.93,152.89,6.5406]
[1727356222578,6.5376,152.96,152.91,19.71770853]
[1727356222957,6.5375,152.97,152.92,6.539]
[1727356223161,6.5377,152.96,152.91,19.71770853]
[1727356223455,6.5373,152.97,152.91,13.17810853]
[1727356223656,0.3110703,152.99,152.93,6.5388]
[1727356223888,0.3110703,152.99,152.93,13.17810853]
[1727356224070,0.3110703,152.99,152.95,6.538]
[1727356224386,0.3110703,152.99,152.96,6.5376]
[1727356226461,0.3110703,152.99,152.97,19.71520853]
[1727356230182,0.3110703,152.99,152.98,6.5368]
[1727356236966,0.3110703,152.99,152.96,16.3434]
[1727356237161,6.8474703,152.99,152.94,6.5384]
[1727356237387,6.5369,152.98,152.94,6.5384]
[1727356237572,6.5376,152.97,152.93,29.52470853]
[1727356237782,0.4365603,152.99,152.93,16.3466]
[1727356238083,6.5377,152.96,152.92,6.539]
[1727356238282,6.6251,152.97,152.89,6.5406]
[1727356238586,6.5388,152.94,152.89,6.5406]
[1727356238893,6.5388,152.94,152.87,29.53130853]
[1727356238894,0.12549,152.93,152.87,22.8946]
[1727356239067,6.5398,152.91,152.87,22.8946]
[1727356239581,6.5394,152.92,152.87,22.8946]
[1727356242694,0.12549,152.92,152.87,16.3532]
[1727356242900,6.66399,152.94,152.89,6.5406]
[1727356243688,6.5389,152.93,152.88,6.541]
[1727356244102,0.12549,152.92,152.88,6.541]
[1727356244599,6.5385,152.94,152.89,6.5403]
[1727356244774,0.12549,152.93,152.9,6.5402]
[1727356244976,6.5385,152.94,152.9,6.5402]
[1727356248384,0.25098,152.94,152.87,6.5414]
[1727356248584,6.5399,152.91,152.87,6.5414]
[1727356248982,6.5404,152.9,152.86,6.6720494]
[1727356249180,6.5404,152.9,152.86,0.1302494]
[1727356249510,6.5404,152.9,152.86,6.6720494]
[1727356250202,0.12549,152.91,152.86,0.1302494]
[1727356250508,6.5407,152.89,152.86,0.1302494]
[1727356250707,6.5402,152.9,152.86,0.1302494]
[1727356251907,6.5402,152.9,152.86,6.6719494]
[1727356256516,6.66529,152.91,152.87,6.5414]
[1727356256690,6.5395,152.92,152.87,6.5414]
[1727356257692,20.25098,152.93,152.86,0.1302494]
[1727356258014,6.5406,152.9,152.86,6.6720494]
[1727356261508,0.12549,152.91,152.86,0.1302494]
[1727356261694,0.12549,152.92,152.86,0.1302494]
[1727356261897,30.566764,152.93,152.89,16.351]
[1727356262406,24.027864,152.93,152.89,16.351]
[1727356262606,6.5395,152.92,152.89,16.351]
[1727356262994,6.5395,152.92,152.88,6.5409]
[1727356264017,6.5395,152.92,152.87,6.5413]
[1727356265185,0.25098,152.91,152.86,16.4843494]
[1727356265489,0.25098,152.91,152.86,23.0260494]
[1727356265490,0.12549,152.9,152.86,23.0260494]
[1727356267314,6.5396,152.92,152.87,6.541]
[1727356267620,6.5396,152.92,152.88,6.5409]
[1727356271596,0.25098,152.92,152.86,16.4843494]
[1727356272099,6.5399,152.91,152.87,6.5412]
[1727356272702,0.25098,152.92,152.86,16.4843494]
[1727356272894,6.5404,152.9,152.86,23.0261494]
[1727356273705,0.25098,152.92,152.86,16.4843494]
[1727356273905,6.54,152.91,152.87,6.5413]
[1727356276009,0.25098,152.92,152.86,16.4843494]
[1727356276202,23.776884,152.91,152.88,6.541]
[1727356276400,23.776884,152.91,152.86,16.4843494]
[1727356276600,30.316684,152.91,152.87,6.5413]
[1727356284709,0.12549,152.92,152.86,16.4843494]
[1727356284910,30.316684,152.91,152.87,6.5413]
[1727356285136,23.776884,152.91,152.88,6.5409]
[1727356285504,0.12549,152.9,152.86,16.4843494]
[1727356285705,0.12549,152.9,152.87,6.5413]
[1727356287723,6.539,152.93,152.89,6.5406]
[1727356288203,20.0,152.94,152.88,22.8934]
[1727356288204,6.5393,152.92,152.88,22.8934]
[1727356288706,20.0,152.94,152.88,16.3525]
[1727356288912,6.5398,152.91,152.88,16.3525]
[1727356289114,6.5398,152.91,152.87,6.5413]
[1727356289115,0.12549,152.9,152.87,6.5413]
[1727356291322,0.12549,152.9,152.86,0.1302494]
[1727356291521,6.5394,152.92,152.87,16.3536]
[1727356291721,0.12549,152.92,152.89,6.5405]
[1727356292099,23.776884,152.93,152.9,6.5401]
[1727356292307,26.5386,152.94,152.89,29.52218077]
[1727356292308,0.12549,152.94,152.89,29.52218077]
[1727356292526,22.0925,152.95,152.91,6.5397]
[1727356293806,23.902374,152.94,152.91,6.5397]
[1727356295023,15.5542,152.95,152.93,6.5389]
[1727356295211,6.5372,152.97,152.93,19.70978077]
[1727356295417,15.4074703,152.99,152.93,29.51748077]
[1727356295603,21.9439703,152.99,152.95,6.5377]
[1727356295809,21.9439703,152.99,152.95,6.538]
[1727356296912,21.9439703,152.99,152.95,19.70888077]
[1727356296913,15.4074703,152.99,152.95,19.70888077]
[1727356297427,21.9438703,152.99,152.95,19.70888077]
[1727356298026,15.4074703,152.99,152.95,19.70888077]
[1727356299832,23.902374,152.98,152.94,6.5384]
[1727356301440,30.439174,152.98,152.94,6.5384]
[1727356309441,21.9438703,152.99,152.95,6.5378]
[1727356310639,0.3110703,152.99,152.98,6.5368]
[1727356311422,0.3110703,152.99,152.98,7.84404025]
[1727356317937,0.3110703,152.99,152.98,6.5368]
[1727356322155,0.3110703,152.99,152.97,22.8794]
[1727356322327,0.3110703,152.99,152.97,16.3425]
[1727356322647,0.3110703,152.99,152.96,6.5375]
[1727356322648,0.3110703,152.99,152.96,19.70838077]
[1727356322830,0.3110703,152.99,152.94,29.51638077]
[1727356323040,6.8475703,152.99,152.95,6.5379]
[1727356323533,0.3110703,152.99,152.96,6.5375]
[1727356323937,0.3110703,152.99,152.96,13.17088077]
[1727356324138,0.3110703,152.99,152.96,19.70838077]
[1727356324331,0.3110703,152.99,152.97,6.5371]
[1727356324628,0.3110703,152.99,152.97,7.84439175]
[1727356325546,0.3110703,152.99,152.97,6.5371]
[1727356328961,0.3110703,152.99,152.98,6.5368]
[1727356330743,0.3110703,152.99,152.98,19.70768077]
[1727356331239,15.1087703,153.01,152.98,19.70768077]
[1727356332944,15.1087703,153.01,152.98,6.5368]
[1727356333457,15.1087703,153.01,152.96,29.51468077]
[1727356333849,21.6442703,153.01,152.97,6.537]
[1727356335555,15.1087703,153.01,152.98,7.84395029]
[1727356336353,15.1087703,153.01,152.98,6.5367]
[1727356337639,6.7940258,153.02,152.98,19.70758077]
[1727356341944,6.7940258,153.02,152.98,6.5367]
[1727356342538,6.5356,153.01,152.97,6.5371]
[1727356345344,6.5362,153.0,152.96,22.8814]
[1727356349875,6.5362,153.0,152.97,1.30731402]
[1727356352250,6.5362,153.0,152.97,7.84451402]
[1727356352465,6.5362,153.0,152.97,6.5372]
[1727356353376,0.2587258,153.02,152.97,6.5372]
[1727356353673,6.5357,153.01,152.97,6.5372]
[1727356355551,6.5364,152.99,152.96,16.3438]
[1727356356552,6.5364,152.99,152.95,6.5379]
[1727356357964,0.25098,153.01,152.93,16.3464]
[1727356358165,6.537,152.98,152.94,6.5384]
[1727356358363,6.537,152.98,152.94,7.84591504]
[1727356358973,6.5369,152.98,152.94,7.84581504]
[1727356359165,6.5369,152.98,152.94,21.01669581]
[1727356359571,6.5369,152.98,152.94,19.70918077]
[1727356363673,23.776884,153.0,152.94,13.17088077]
[1727356363875,6.536,153.0,152.96,6.5374]
[1727356364459,0.2587258,153.02,152.97,7.84444179]
[1727356364673,6.5359,153.0,152.97,6.5371]
[1727356364878,6.5359,153.0,152.96,19.70838077]
[1727356365676,0.12549,153.01,152.96,6.5375]
[1727356365981,6.5364,152.99,152.95,22.8829]
[1727356366900,6.5368,152.98,152.95,16.345]
[1727356368989,6.5378,152.96,152.92,22.8869]
[1727356369193,6.5382,152.95,152.92,16.3476]